{"text_format":"1","workbook":"xlsx","n_sheets":3,"sheets":["Suspensions","Biscottes","Tabelle1"],"not_rendered":{"charts":0,"images":0,"macros":1,"external_links":0,"defined_names":2,"comments":1,"pivot_tables":0},"unopened":[],"bounds":{"document_bytes":16777216,"sheet_cells":100000,"rows_first":2000,"rows_last":500,"rows_between":2000,"halvings":0,"cell_chars":16384,"cell_head_chars":4096},"cells_cut":0,"cells_raw":0,"read":"whole","date_system":"1900"}

{"sheet":"Suspensions","index":0,"n_rows":36,"n_cols":31,"rows_kept":36,"cut":false,"hidden":false,"merged":[]}
[null,"Brest - RCS","RCS - Auxerre","Sochaux - RCS","RCS - Reims","Oberlauterbach - RCS","Ajaccio AC - RCS","RCS - Laval","Le Havre - RCS","RCS - Lens","RCS - Niort","Amiens - RCS","RCS - Tours","Nîmes - RCS","RCS - Ajaccio Gazélec","Troyes - RCS","RCS - Orléans","Red Star - RCS","RCS - Clermont","Valenciennes - RCS","RCS - Brest","Auxerre - RCS","RCS - Sochaux","Reims - RCS","RCS - Ajaccio AC","Laval - RCS","RCS - Le Havre","Lens - RCS","Niort - RCS","RCS - Bourg-Péronnas","Sursis"]
["Gardiens de but"]
["Bonnefoi Landry"]
["Oukidja Alexandre"]
["Défenseurs latéraux, droite"]
["Marester Eric",null,"x"]
["Défenseurs centraux"]
["Mangane Kader"]
["Saad Felipe","x","x"]
["Salmier Yoann"]
["Seka Ernest"]
["Défenseurs latéraux, gauche"]
["N'Dour Abdallah"]
["Milieux défensifs"]
["Dos Santos Laurent"]
["Gonçalves Anthony"]
["Grimm Jérémy",null,null,null,null,"x"]
["N'Doye Mayoro"]
["Nogueira Vincent",null,null,null,null,null,"x"]
["Othon Quentin"]
["Milieux offensifs"]
["Belahmeur Abdelhak"]
["Gragnic Vincent"]
["Liénard Dimitri","x","x"]
["Pouye Oumar"]
["Sacko Ihsan"]
["Attaquants"]
["Bahoken Stéphane"]
["Benkaïd Hicham"]
["Blayac Jérémy"]
["Boutaïb Khalid"]
["Guillaume Baptiste"]
["Encadrement"]
["Laurey Thierry"]
["Pietra François"]
["Roi Sébastien","x",null,null,null,null,null,null,null,null,null,null,null,null,null,null,null,null,null,null,null,null,null,null,null,null,null,null,null,null,"x"]

{"sheet":"Biscottes","index":1,"n_rows":39,"n_cols":99,"rows_kept":39,"cut":false,"hidden":false,"merged":[]}
[null,"Bourg-en-Bresse - RCS","Bourg-en-Bresse - RCS","RCS - Amiens","RCS - Amiens","RCS- Niort","RCS- Niort","Tours - RCS","Tours - RCS","RCS - Nîmes","RCS - Nîmes"," RCS II - Sarreguemines"," RCS II - Sarreguemines","Auxerre - RCS","Auxerre - RCS","Ajaccio Gazélec - RCS","Ajaccio Gazélec - RCS","RCS - Troyes","RCS - Troyes","Orléans - RCS","Orléans - RCS","RCS II - Nancy II","RCS II - Nancy II","RCS - Red Star","RCS - Red Star","Clermont - RCS","Clermont - RCS","RCS - Valenciennes","RCS - Valenciennes","Biesheim - RCS","Biesheim - RCS","Brest - RCS","Brest - RCS","RCS II - Lunéville","RCS II - Lunéville","RCS - Auxerre","RCS - Auxerre","Sochaux - RCS","Sochaux - RCS","Haguenau - RCS II","Haguenau - RCS II","RCS - Reims","RCS - Reims","RCS II - Forbach","RCS II - Forbach","Oberlauterbach - RCS","Oberlauterbach - RCS","Ajaccio AC - RCS","Ajaccio AC - RCS","RCS - Laval","RCS - Laval","Le Havre - RCS","Le Havre - RCS","RCS - Lens","RCS - Lens","RCS - Niort","RCS - Niort","Amiens - RCS","Amiens - RCS","RCS - Tours","RCS - Tours","Nîmes - RCS","Nîmes - RCS","RCS - Ajaccio Gazélec","RCS - Ajaccio Gazélec","Troyes - RCS","Troyes - RCS","RCS - Orléans","RCS - Orléans","Red Star - RCS","Red Star - RCS","RCS - Clermont","RCS - Clermont","Valenciennes - RCS","Valenciennes - RCS","RCS - Brest","RCS - Brest","Auxerre - RCS","Auxerre - RCS","RCS - Sochaux","RCS - Sochaux","Reims - RCS","Reims - RCS","RCS - Ajaccio AC","RCS - Ajaccio AC","Laval - RCS","Laval - RCS","RCS - Le Havre","RCS - Le Havre","Lens - RCS","Lens - RCS","Niort - RCS","Niort - RCS","RCS - Bourg-Péronnas","RCS - Bourg-Péronnas","Somme","Joués","Biscottes","Rouges"]
["Match joué","x",null,"x",null,"x",null,"x",null,"x",null,"x",null,"x",null,"x",null,"x",null,"x",null,"x",null,"x",null,"x",null,"x",null,"x",null,"x",null,"x",null,"x",null,"x",null,"x",null,"x",null,"x",null,null,null,null,null,null,null,null,null,null,null,null,null,null,null,null,null,null,null,null,null,null,null,null,null,null,null,null,null,null,null,null,null,null,null,null,null,null,null,null,null,null,null,null,null,null,null,null,null,null,null,{"$f":"COUNTIF($B2:$CO2,\"x\")","v":22}]
["Date","2016-07-29","2016-07-29","2016-08-06","2016-08-06","2016-08-09","2016-08-09","2016-08-12","2016-08-12","2016-08-19","2016-08-19","2016-08-20","2016-08-20","2016-08-23","2016-08-23","2016-08-26","2016-08-26","2016-09-12","2016-09-12","2016-09-16","2016-09-16","2016-09-17","2016-09-17","2016-09-19","2016-09-19","2016-09-23","2016-09-23","2016-10-01","2016-10-01","2016-10-01","2016-10-01","2016-10-15","2016-10-15","2016-10-15","2016-10-15","2016-10-21","2016-10-21","2016-10-29","2016-10-29","2016-10-29","2016-10-29","2016-11-05","2016-11-05","2016-11-05","2016-11-05"]
["Gardiens de but"]
["Bonnefoi Landry",null,null,null,null,null,"j",null,null,null,null,null,null,null,"j",null,null,null,null,null,null,null,null,null,null,null,null,null,null,null,null,null,null,null,null,null,null,null,null,null,null,null,null,null,null,null,null,null,null,null,null,null,null,null,null,null,null,null,null,null,null,null,null,null,null,null,null,null,null,null,null,null,null,null,null,null,null,null,null,null,null,null,null,null,null,null,null,null,null,null,null,null,null,null,null,null,{"$f":"COUNTIF($B5:$CP5,\"j\")","v":2},{"$f":"COUNTIF($B5:$CP5,\"x\")+COUNTIF($B5:$CP5,\"xx\")","v":0},{"$f":"COUNTIF($B5:$CP5,\"r\")+COUNTIF($B5:$CP5,\"xx\")","v":0}]
["Oukidja Alexandre",null,"j",null,"j",null,null,null,"j",null,"j",null,null,null,null,"x","j",null,"j",null,"j",null,null,null,"j",null,"j",null,"j",null,null,null,"j",null,null,null,"j",null,"j",null,null,null,"j",null,null,null,null,null,null,null,null,null,null,null,null,null,null,null,null,null,null,null,null,null,null,null,null,null,null,null,null,null,null,null,null,null,null,null,null,null,null,null,null,null,null,null,null,null,null,null,null,null,null,null,null,null,{"$f":"COUNTIF($B6:$CP6,\"j\")","v":14},{"$f":"COUNTIF($B6:$CP6,\"x\")+COUNTIF($B6:$CP6,\"xx\")","v":1},{"$f":"COUNTIF($B6:$CP6,\"r\")+COUNTIF($B6:$CP6,\"xx\")","v":0}]
["Défenseurs latéraux, droite"]
["Marester Eric",null,"j",null,"j",null,"j","x","j",null,null,null,null,null,"j",null,"j",null,null,null,"j",null,null,null,"j",null,"j",null,null,null,null,"xx","j",null,null,null,null,null,"j",null,null,"x","j",null,null,null,null,null,null,null,null,null,null,null,null,null,null,null,null,null,null,null,null,null,null,null,null,null,null,null,null,null,null,null,null,null,null,null,null,null,null,null,null,null,null,null,null,null,null,null,null,null,null,null,null,null,{"$f":"COUNTIF($B8:$CP8,\"j\")","v":12},{"$f":"COUNTIF($B8:$CP8,\"x\")+COUNTIF($B8:$CP8,\"xx\")","v":3},{"$f":"COUNTIF($B8:$CP8,\"r\")+COUNTIF($B8:$CP8,\"xx\")","v":1}]
["Défenseurs centraux"]
["Mangane Kader",null,null,null,null,null,null,null,null,null,null,null,null,null,null,null,null,null,"j",null,null,null,null,null,"j",null,"j",null,"j",null,null,"x","j",null,null,null,null,null,null,null,null,null,null,null,null,null,null,null,null,null,null,null,null,null,null,null,null,null,null,null,null,null,null,null,null,null,null,null,null,null,null,null,null,null,null,null,null,null,null,null,null,null,null,null,null,null,null,null,null,null,null,null,null,null,null,null,{"$f":"COUNTIF($B10:$CP10,\"j\")","v":5},{"$f":"COUNTIF($B10:$CP10,\"x\")+COUNTIF($B10:$CP10,\"xx\")","v":1},{"$f":"COUNTIF($B10:$CP10,\"r\")+COUNTIF($B10:$CP10,\"xx\")","v":0}]
["Saad Felipe",null,"j",null,"j",null,null,null,"j",null,"j",null,null,null,null,"xx","j",null,null,null,"j",null,null,null,null,null,"j","r","j",null,null,null,null,null,null,null,null,null,null,null,null,null,null,null,null,null,null,null,null,null,null,null,null,null,null,null,null,null,null,null,null,null,null,null,null,null,null,null,null,null,null,null,null,null,null,null,null,null,null,null,null,null,null,null,null,null,null,null,null,null,null,null,null,null,null,null,{"$f":"COUNTIF($B11:$CP11,\"j\")","v":8},{"$f":"COUNTIF($B11:$CP11,\"x\")+COUNTIF($B11:$CP11,\"xx\")","v":1},{"$f":"COUNTIF($B11:$CP11,\"r\")+COUNTIF($B11:$CP11,\"xx\")","v":2}]
["Salmier Yoann",null,null,null,null,null,"j",null,"j",null,"j",null,null,null,"j",null,"j",null,"j",null,"j",null,null,null,null,null,null,null,"j",null,null,null,"j",null,null,null,"j",null,"j",null,null,null,"j",null,null,null,null,null,null,null,null,null,null,null,null,null,null,null,null,null,null,null,null,null,null,null,null,null,null,null,null,null,null,null,null,null,null,null,null,null,null,null,null,null,null,null,null,null,null,null,null,null,null,null,null,null,{"$f":"COUNTIF($B12:$CP12,\"j\")","v":12},{"$f":"COUNTIF($B12:$CP12,\"x\")+COUNTIF($B12:$CP12,\"xx\")","v":0},{"$f":"COUNTIF($B12:$CP12,\"r\")+COUNTIF($B12:$CP12,\"xx\")","v":0}]
["Seka Ernest",null,"j",null,"j",null,"j",null,"j","r","j",null,null,null,null,null,"j",null,"j",null,"j",null,null,null,"j",null,"j",null,null,null,null,null,"j",null,null,null,"j",null,"j",null,null,null,"j",null,null,null,null,null,null,null,null,null,null,null,null,null,null,null,null,null,null,null,null,null,null,null,null,null,null,null,null,null,null,null,null,null,null,null,null,null,null,null,null,null,null,null,null,null,null,null,null,null,null,null,null,null,{"$f":"COUNTIF($B13:$CP13,\"j\")","v":14},{"$f":"COUNTIF($B13:$CP13,\"x\")+COUNTIF($B13:$CP13,\"xx\")","v":0},{"$f":"COUNTIF($B13:$CP13,\"r\")+COUNTIF($B13:$CP13,\"xx\")","v":1}]
["Défenseurs latéraux, gauche"]
["N'Dour Abdallah",null,"j",null,"j",null,"j",null,"j",null,"j",null,null,null,"j",null,"j",null,"j",null,"j",null,null,null,"j",null,"j",null,"j",null,null,"x","j",null,null,null,"j",null,"j",null,null,"x","j",null,null,null,null,null,null,null,null,null,null,null,null,null,null,null,null,null,null,null,null,null,null,null,null,null,null,null,null,null,null,null,null,null,null,null,null,null,null,null,null,null,null,null,null,null,null,null,null,null,null,null,null,null,{"$f":"COUNTIF($B15:$CP15,\"j\")","v":16},{"$f":"COUNTIF($B15:$CP15,\"x\")+COUNTIF($B15:$CP15,\"xx\")","v":2},{"$f":"COUNTIF($B15:$CP15,\"r\")+COUNTIF($B15:$CP15,\"xx\")","v":0}]
["Milieux défensifs"]
["Dos Santos Laurent",null,"j",null,null,null,"j",null,"j",null,"j",null,null,null,"j",null,"j",null,"j",null,"j",null,null,null,"j",null,"j",null,"j",null,null,null,"j",null,null,null,"j",null,"j",null,null,null,null,null,null,null,null,null,null,null,null,null,null,null,null,null,null,null,null,null,null,null,null,null,null,null,null,null,null,null,null,null,null,null,null,null,null,null,null,null,null,null,null,null,null,null,null,null,null,null,null,null,null,null,null,null,{"$f":"COUNTIF($B17:$CP17,\"j\")","v":14},{"$f":"COUNTIF($B17:$CP17,\"x\")+COUNTIF($B17:$CP17,\"xx\")","v":0},{"$f":"COUNTIF($B17:$CP17,\"r\")+COUNTIF($B17:$CP17,\"xx\")","v":0}]
["Gonçalves Anthony",null,"j",null,"j","x","j",null,"j",null,"j",null,null,null,"j",null,"j",null,"j","x","j",null,null,null,"j",null,"j",null,null,null,null,null,"j",null,null,null,null,"x",null,null,null,null,null,null,null,null,null,null,null,null,null,null,null,null,null,null,null,null,null,null,null,null,null,null,null,null,null,null,null,null,null,null,null,null,null,null,null,null,null,null,null,null,null,null,null,null,null,null,null,null,null,null,null,null,null,null,12,3,0]
["Grimm Jérémy",null,"j",null,"j","x","j",null,"j",null,"j",null,null,null,"j","x","j","x","j",null,"j",null,null,null,"j",null,null,"x","j",null,null,null,"j",null,null,"x","j",null,"j",null,null,null,"j",null,null,null,null,null,null,null,null,null,null,null,null,null,null,null,null,null,null,null,null,null,null,null,null,null,null,null,null,null,null,null,null,null,null,null,null,null,null,null,null,null,null,null,null,null,null,null,null,null,null,null,null,null,15,5,0]
["N'Doye Mayoro",null,null,null,"j","x","j",null,"j",null,"j",null,null,null,"j",null,null,null,null,null,null,null,null,null,null,null,null,null,null,null,null,null,null,null,"j",null,"j",null,"j",null,null,null,"j",null,null,null,null,null,null,null,null,null,null,null,null,null,null,null,null,null,null,null,null,null,null,null,null,null,null,null,null,null,null,null,null,null,null,null,null,null,null,null,null,null,null,null,null,null,null,null,null,null,null,null,null,null,9,1,0]
["Nogueira Vincent",null,"j",null,"j",null,"j",null,"j","x","j",null,null,null,null,null,"j",null,"j",null,"j",null,null,null,"j",null,"j",null,"j",null,null,null,"j",null,null,"x","j",null,"j",null,null,"x","j",null,"j",null,null,null,null,null,null,null,null,null,null,null,null,null,null,null,null,null,null,null,null,null,null,null,null,null,null,null,null,null,null,null,null,null,null,null,null,null,null,null,null,null,null,null,null,null,null,null,null,null,null,null,16,3,0]
["Othon Quentin",null,null,null,null,null,null,null,null,null,null,null,null,null,null,null,null,null,null,null,null,null,null,null,null,null,null,null,null,null,"j",null,null,null,"j",null,null,null,null,null,null,null,null,null,null,null,null,null,null,null,null,null,null,null,null,null,null,null,null,null,null,null,null,null,null,null,null,null,null,null,null,null,null,null,null,null,null,null,null,null,null,null,null,null,null,null,null,null,null,null,null,null,null,null,null,null,2,0,0]
["Milieux offensifs"]
["Belahmeur Abdelhak",null,null,null,null,null,null,null,null,null,null,null,null,null,null,null,null,null,null,null,null,null,null,null,null,null,null,null,null,null,null,null,null,null,null,null,null,null,null,null,"j",null,null,null,"j",null,null,null,null,null,null,null,null,null,null,null,null,null,null,null,null,null,null,null,null,null,null,null,null,null,null,null,null,null,null,null,null,null,null,null,null,null,null,null,null,null,null,null,null,null,null,null,null,null,null,null,{"$f":"COUNTIF($B24:$CP24,\"j\")","v":2},{"$f":"COUNTIF($B24:$CP24,\"x\")+COUNTIF($B24:$CP24,\"xx\")","v":0},{"$f":"COUNTIF($B24:$CP24,\"r\")+COUNTIF($B24:$CP24,\"xx\")","v":0}]
["Gragnic Vincent",null,"j","x","j",null,null,null,null,null,"j",null,null,null,"j",null,null,null,"j",null,"j",null,null,null,"j",null,"j",null,null,null,null,null,"j",null,null,null,"j",null,"j",null,null,null,null,null,null,null,null,null,null,null,null,null,null,null,null,null,null,null,null,null,null,null,null,null,null,null,null,null,null,null,null,null,null,null,null,null,null,null,null,null,null,null,null,null,null,null,null,null,null,null,null,null,null,null,null,null,{"$f":"COUNTIF($B25:$CP25,\"j\")","v":11},{"$f":"COUNTIF($B25:$CP25,\"x\")+COUNTIF($B25:$CP25,\"xx\")","v":1},{"$f":"COUNTIF($B25:$CP25,\"r\")+COUNTIF($B25:$CP25,\"xx\")","v":0}]
["Liénard Dimitri",null,null,null,null,null,null,null,null,null,null,null,"j",null,"j",null,"j",null,"j",null,"j",null,null,null,"j",null,"j","r","j",null,null,null,null,null,null,null,null,null,"j",null,null,null,"j",null,"j",null,null,null,null,null,null,null,null,null,null,null,null,null,null,null,null,null,null,null,null,null,null,null,null,null,null,null,null,null,null,null,null,null,null,null,null,null,null,null,null,null,null,null,null,null,null,null,null,null,null,null,{"$f":"COUNTIF($B26:$CP26,\"j\")","v":11},{"$f":"COUNTIF($B26:$CP26,\"x\")+COUNTIF($B26:$CP26,\"xx\")","v":0},{"$f":"COUNTIF($B26:$CP26,\"r\")+COUNTIF($B26:$CP26,\"xx\")","v":1}]
["Pouye Oumar",null,null,null,null,null,null,null,null,null,null,null,null,null,null,null,null,null,null,null,null,null,null,null,null,null,null,null,null,null,"j",null,null,null,"j",null,null,null,null,null,"j",null,null,null,null,null,null,null,null,null,null,null,null,null,null,null,null,null,null,null,null,null,null,null,null,null,null,null,null,null,null,null,null,null,null,null,null,null,null,null,null,null,null,null,null,null,null,null,null,null,null,null,null,null,null,null,{"$f":"COUNTIF($B27:$CP27,\"j\")","v":3},{"$f":"COUNTIF($B27:$CP27,\"x\")+COUNTIF($B27:$CP27,\"xx\")","v":0},{"$f":"COUNTIF($B27:$CP27,\"r\")+COUNTIF($B27:$CP27,\"xx\")","v":0}]
["Sacko Ihsan",null,null,null,"j",null,"j",null,"j",null,"j",null,null,null,"j",null,"j",null,null,null,null,null,null,null,null,null,null,null,"j",null,null,null,"j",null,null,null,"j",null,"j",null,null,null,"j",null,null,null,null,null,null,null,null,null,null,null,null,null,null,null,null,null,null,null,null,null,null,null,null,null,null,null,null,null,null,null,null,null,null,null,null,null,null,null,null,null,null,null,null,null,null,null,null,null,null,null,null,null,{"$f":"COUNTIF($B28:$CP28,\"j\")","v":11},{"$f":"COUNTIF($B28:$CP28,\"x\")+COUNTIF($B28:$CP28,\"xx\")","v":0},{"$f":"COUNTIF($B28:$CP28,\"r\")+COUNTIF($B28:$CP28,\"xx\")","v":0}]
["Attaquants"]
["Bahoken Stéphane",null,"j",null,"j",null,"j",null,"j",null,"j",null,null,null,"j",null,"j",null,"j",null,"j",null,null,null,"j",null,"j",null,null,null,null,null,null,null,null,null,null,null,null,null,null,null,null,null,null,null,null,null,null,null,null,null,null,null,null,null,null,null,null,null,null,null,null,null,null,null,null,null,null,null,null,null,null,null,null,null,null,null,null,null,null,null,null,null,null,null,null,null,null,null,null,null,null,null,null,null,{"$f":"COUNTIF($B30:$CP30,\"j\")","v":11},{"$f":"COUNTIF($B30:$CP30,\"x\")+COUNTIF($B30:$CP30,\"xx\")","v":0},{"$f":"COUNTIF($B30:$CP30,\"r\")+COUNTIF($B30:$CP30,\"xx\")","v":0}]
["Benkaïd Hicham",null,null,null,null,null,null,null,null,null,null,null,null,null,null,null,null,null,null,null,null,null,"j",null,null,null,null,null,null,null,"j",null,null,null,"j",null,null,null,null,null,"j",null,null,"x","j",null,null,null,null,null,null,null,null,null,null,null,null,null,null,null,null,null,null,null,null,null,null,null,null,null,null,null,null,null,null,null,null,null,null,null,null,null,null,null,null,null,null,null,null,null,null,null,null,null,null,null,{"$f":"COUNTIF($B31:$CP31,\"j\")","v":5},{"$f":"COUNTIF($B31:$CP31,\"x\")+COUNTIF($B31:$CP31,\"xx\")","v":1},{"$f":"COUNTIF($B31:$CP31,\"r\")+COUNTIF($B31:$CP31,\"xx\")","v":0}]
["Blayac Jérémy",null,null,null,null,null,null,null,null,null,null,null,null,null,null,null,null,null,"j",null,null,null,null,null,"j",null,null,null,"j",null,null,null,null,null,null,null,"j",null,"j",null,null,null,"j",null,null,null,null,null,null,null,null,null,null,null,null,null,null,null,null,null,null,null,null,null,null,null,null,null,null,null,null,null,null,null,null,null,null,null,null,null,null,null,null,null,null,null,null,null,null,null,null,null,null,null,null,null,{"$f":"COUNTIF($B32:$CP32,\"j\")","v":6},{"$f":"COUNTIF($B32:$CP32,\"x\")+COUNTIF($B32:$CP32,\"xx\")","v":0},{"$f":"COUNTIF($B32:$CP32,\"r\")+COUNTIF($B32:$CP32,\"xx\")","v":0}]
["Boutaïb Khalid",null,"j","x","j",null,"j",null,"j","x","j",null,null,null,"j",null,"j",null,"j",null,"j",null,null,null,"j",null,"j","x","j",null,null,null,"j",null,null,null,"j",null,"j",null,null,"x","j",null,null,null,null,null,null,null,null,null,null,null,null,null,null,null,null,null,null,null,null,null,null,null,null,null,null,null,null,null,null,null,null,null,null,null,null,null,null,null,null,null,null,null,null,null,null,null,null,null,null,null,null,null,{"$f":"COUNTIF($B33:$CP33,\"j\")","v":16},{"$f":"COUNTIF($B33:$CP33,\"x\")+COUNTIF($B33:$CP33,\"xx\")","v":4},{"$f":"COUNTIF($B33:$CP33,\"r\")+COUNTIF($B33:$CP33,\"xx\")","v":0}]
["Guillaume Baptiste",null,"j",null,"j",null,"j",null,null,null,null,null,null,null,null,null,null,null,null,null,null,null,"j",null,null,null,"j",null,"j",null,null,null,"j",null,null,null,"j",null,null,null,null,null,"j",null,null,null,null,null,null,null,null,null,null,null,null,null,null,null,null,null,null,null,null,null,null,null,null,null,null,null,null,null,null,null,null,null,null,null,null,null,null,null,null,null,null,null,null,null,null,null,null,null,null,null,null,null,{"$f":"COUNTIF($B34:$CP34,\"j\")","v":9},{"$f":"COUNTIF($B34:$CP34,\"x\")+COUNTIF($B34:$CP34,\"xx\")","v":0},{"$f":"COUNTIF($B34:$CP34,\"r\")+COUNTIF($B34:$CP34,\"xx\")","v":0}]
["Encadrement"]
["Laurey Thierry",null,null,null,null,null,null,null,null,null,null,null,null,null,null,null,null,null,null,null,null,null,null,null,null,null,null,null,null,null,null,null,null,null,null,null,null,null,null,null,null,null,null,null,null,null,null,null,null,null,null,null,null,null,null,null,null,null,null,null,null,null,null,null,null,null,null,null,null,null,null,null,null,null,null,null,null,null,null,null,null,null,null,null,null,null,null,null,null,null,null,null,null,null,null,null,{"$f":"COUNTIF($B36:$CP36,\"j\")","v":0},{"$f":"COUNTIF($B36:$CP36,\"x\")+COUNTIF($B36:$CP36,\"xx\")","v":0},{"$f":"COUNTIF($B36:$CP36,\"r\")+COUNTIF($B36:$CP36,\"xx\")","v":0}]
["Pietra François",null,null,null,null,null,null,null,null,null,null,null,null,null,null,null,null,null,null,null,null,null,null,null,null,null,null,null,null,null,null,null,null,null,null,null,null,null,null,null,null,null,null,null,null,null,null,null,null,null,null,null,null,null,null,null,null,null,null,null,null,null,null,null,null,null,null,null,null,null,null,null,null,null,null,null,null,null,null,null,null,null,null,null,null,null,null,null,null,null,null,null,null,null,null,null,{"$f":"COUNTIF($B37:$CP37,\"j\")","v":0},{"$f":"COUNTIF($B37:$CP37,\"x\")+COUNTIF($B37:$CP37,\"xx\")","v":0},{"$f":"COUNTIF($B37:$CP37,\"r\")+COUNTIF($B37:$CP37,\"xx\")","v":0}]
["Roi Sébastien",null,null,null,null,null,null,null,null,null,null,null,null,null,null,null,null,null,null,null,null,null,null,null,null,null,null,null,null,null,null,null,null,null,null,null,null,null,null,null,null,null,null,null,null,null,null,null,null,null,null,null,null,null,null,null,null,null,null,null,null,null,null,null,null,null,null,null,null,null,null,null,null,null,null,null,null,null,null,null,null,null,null,null,null,null,null,null,null,null,null,null,null,null,null,null,{"$f":"COUNTIF($B38:$CP38,\"j\")","v":0},{"$f":"COUNTIF($B38:$CP38,\"x\")+COUNTIF($B38:$CP38,\"xx\")","v":0},{"$f":"COUNTIF($B38:$CP38,\"r\")+COUNTIF($B38:$CP38,\"xx\")","v":0}]
[null,{"$f":"SUBTOTAL(3,B5:B38)","v":0},{"$f":"SUBTOTAL(3,C5:C38)","v":13},2,14,3,14,1,14,3,14,0,1,0,13,3,14,1,14,1,14,0,2,0,14,0,14,4,13,0,3,3,14,0,4,2,13,1,14,0,3,4,13,{"$f":"SUBTOTAL(3,AR5:AR38)","v":1},4,0,0,0,0,0,0,0,0,0,0,0,0,0,0,0,0,0,0,0,0,0,0,0,0,0,0,0,{"$f":"SUBTOTAL(3,BU5:BU38)","v":0},0,0,0,0,0,0,0,0,0,0,0,0,0,0,0,0,0,0,0,0,0,0,0,{"$f":"SUBTOTAL(9,CS5:CS38)","v":236},26,{"$f":"SUBTOTAL(9,CU5:CU38)","v":5}]

{"sheet":"Tabelle1","index":2,"n_rows":0,"n_cols":0,"rows_kept":0,"cut":false,"hidden":false,"merged":[]}